bitfinex/quotes_BTCUSD_20230120
["timestamp","ask_amount","ask_price","bid_price","bid_amount"]
[1674178945638,0.87720277,21106.0,21104.0,0.46663299]
[1674178945902,0.40340477,21106.0,21104.0,0.46663299]
[1674178946176,0.40340477,21106.0,21104.0,0.46963299]
[1674178946177,0.42840477,21106.0,21104.0,0.46963299]
[1674178947333,0.025,21106.0,21104.0,0.46963299]
[1674178947334,0.025,21106.0,21105.0,0.46823946]
[1674178948866,0.85158079,21107.0,21105.0,0.46823946]
[1674178949119,0.53598046,21106.0,21105.0,0.003]
[1674178950386,0.066,21106.0,21105.0,0.003]
[1674178950654,0.066,21106.0,21105.0,0.44686905]
[1674178955574,0.539798,21106.0,21105.0,0.003]
[1674178955798,1.77030506,21106.0,21105.0,0.003]
[1674178956392,1.29650706,21106.0,21105.0,0.003]
[1674178956606,0.99163306,21106.0,21105.0,0.003]
[1674178956874,0.51783506,21106.0,21105.0,0.003]
[1674178959273,0.51783506,21106.0,21105.0,0.00333949]
[1674178959561,0.066,21106.0,21105.0,0.00333949]
[1674178959827,0.066,21106.0,21105.0,0.47758722]
[1674178961158,0.066,21106.0,21105.0,0.38159722]
[1674178961986,0.066,21106.0,21105.0,0.003]
[1674178962273,1.31325733,21106.0,21105.0,0.003]
[1674178964047,1.31325733,21106.0,21105.0,0.0029308]
[1674178965141,0.83945933,21106.0,21105.0,0.0029308]
[1674178965393,1.31325733,21106.0,21105.0,0.0029308]
[1674178965677,0.98387933,21106.0,21105.0,0.0029308]
[1674178965926,1.77593333,21106.0,21105.0,0.0029308]
[1674178967894,1.66235797,21106.0,21105.0,0.0029308]
[1674178969162,1.77593333,21106.0,21105.0,0.0029308]
[1674178970798,1.50181713,21106.0,21105.0,0.0029308]
[1674178971024,2.93521846,21106.0,21105.0,0.0029308]
[1674178971301,3.62623266,21106.0,21105.0,0.0029308]
[1674178971559,3.64295744,21106.0,21105.0,0.0029308]
[1674178971818,3.65145744,21106.0,21105.0,0.0029308]
[1674178972184,0.00184782,21104.0,21099.0,0.43023877]
[1674178972389,0.11355728,21102.0,21099.0,0.01961803]
[1674178972658,1.77710605,21101.0,21099.0,0.01961803]
[1674178972942,0.62588201,21100.0,21099.0,0.01961803]
[1674178975096,0.71388201,21100.0,21099.0,0.01961803]
[1674178975913,0.71388201,21100.0,21099.0,0.0195135]
[1674178977310,1.18781501,21100.0,21099.0,0.0195135]
[1674178977821,0.71388201,21100.0,21099.0,0.0195135]
[1674178979575,0.62588201,21100.0,21099.0,0.0195135]
[1674178979841,0.71688201,21100.0,21099.0,0.0195135]
[1674178980376,1.73661525,21100.0,21099.0,0.0195135]
[1674178980379,1.66474801,21100.0,21099.0,0.0195135]
[1674178981438,1.57374801,21100.0,21099.0,0.0195135]
[1674178981640,1.66474801,21100.0,21099.0,0.0195135]
[1674178981915,1.57374801,21100.0,21099.0,0.0195135]
[1674178982177,1.66474801,21100.0,21099.0,0.0195135]
[1674178983501,1.74169401,21100.0,21099.0,0.0195135]
[1674178983765,1.41197401,21100.0,21099.0,0.0195135]
[1674178984044,0.894272,21100.0,21099.0,0.0195135]
[1674178984301,0.894272,21100.0,21099.0,0.4184993]
[1674178984302,0.091,21100.0,21099.0,0.4184993]
[1674178985373,0.8963476,21101.0,21099.0,0.4184993]
[1674178985625,0.019,21100.0,21099.0,0.4194993]
[1674178985923,0.8963476,21101.0,21099.0,0.4184993]
[1674178986145,0.8963476,21101.0,21099.0,0.4194993]
[1674178986146,0.019,21100.0,21099.0,0.4194993]
[1674178986404,0.4224166,21101.0,21099.0,0.8924553]
[1674178986783,0.4414166,21101.0,21100.0,0.333131]
[1674178986951,0.4414166,21101.0,21099.0,0.4194993]
[1674178989049,0.019,21101.0,21100.0,0.50235986]
[1674178989304,0.019,21101.0,21100.0,0.80796986]
[1674178989574,0.019,21101.0,21100.0,0.82413886]
[1674178989850,0.81960076,21103.0,21100.0,0.82413886]
[1674178990114,0.81960076,21103.0,21101.0,0.309735]
[1674178990394,0.81960076,21103.0,21100.0,0.50335986]
[1674178990931,0.38711799,21102.0,21100.0,0.40335986]
[1674178991203,0.3484538,21101.0,21099.0,0.0195135]
[1674178991462,0.3484538,21101.0,21099.0,0.48108421]
[1674178991728,0.3484538,21101.0,21100.0,0.001]
[1674178992034,0.3484538,21101.0,21099.0,0.48108421]
[1674178992292,0.3674538,21101.0,21099.0,0.48208421]
[1674178992575,0.3484538,21101.0,21099.0,0.48108421]
[1674178993103,0.4304538,21101.0,21100.0,0.001]
[1674178993409,0.3484538,21101.0,21099.0,0.0195135]
[1674178993677,0.327755,21100.0,21099.0,0.0205135]
[1674178994237,1.275621,21100.0,21099.0,0.0205135]
[1674178994511,1.275621,21100.0,21099.0,0.0195135]
[1674178994954,1.73984874,21100.0,21099.0,0.0195135]
[1674178995172,1.41209374,21100.0,21099.0,0.0195135]
[1674178995395,1.80715774,21100.0,21099.0,0.0205135]
[1674178995621,1.91860156,21100.0,21099.0,0.0195135]
[1674178995898,2.00160156,21100.0,21099.0,0.0205135]
[1674178996197,1.80815774,21100.0,21099.0,0.0205135]
[1674178996465,1.49509374,21100.0,21099.0,0.0205135]
[1674178996729,1.73157674,21100.0,21099.0,0.0195135]
[1674178996984,1.41209374,21100.0,21099.0,0.0195135]
[1674178997543,1.72990574,21100.0,21099.0,0.0195135]
[1674178997798,1.49509374,21100.0,21099.0,0.0205135]
[1674178998069,1.72230374,21100.0,21099.0,0.0195135]
[1674178999380,1.80530374,21100.0,21099.0,0.0205135]
[1674179000672,1.41209374,21100.0,21099.0,0.0195135]
[1674179000923,1.71792374,21100.0,21099.0,0.0195135]
[1674179001462,0.93816074,21100.0,21099.0,0.0195135]
[1674179002252,1.02116074,21100.0,21099.0,0.0205135]
[1674179002504,1.02116074,21100.0,21099.0,0.0195135]
[1674179002505,0.93816074,21100.0,21099.0,0.0195135]
[1674179002831,1.02116074,21100.0,21099.0,0.0205135]
[1674179006466,0.083,21100.0,21099.0,0.0205135]
[1674179015939,0.52857144,21100.0,21099.0,0.0205135]
[1674179017798,0.53557144,21100.0,21099.0,0.0195135]
[1674179018336,0.84340744,21100.0,21099.0,0.0195135]
[1674179018847,0.53557144,21100.0,21099.0,0.0195135]
[1674179019639,0.44557144,21100.0,21099.0,0.0195135]
[1674179020684,0.53557144,21100.0,21099.0,0.0195135]
[1674179023979,0.86564244,21100.0,21099.0,0.0195135]
[1674179024253,0.53557144,21100.0,21099.0,0.0195135]
[1674179024775,0.84683644,21100.0,21099.0,0.0195135]
[1674179026912,1.79683144,21100.0,21099.0,0.0195135]
[1674179027410,1.00950444,21100.0,21099.0,0.0195135]
[1674179027690,1.32095544,21100.0,21099.0,0.0195135]
[1674179027943,1.00950444,21100.0,21099.0,0.0195135]
[1674179028250,1.34042044,21100.0,21099.0,0.0195135]
[1674179028511,1.00950444,21100.0,21099.0,0.0195135]
[1674179028774,1.33816544,21100.0,21099.0,0.0195135]
[1674179029283,0.86423244,21100.0,21099.0,0.0195135]
[1674179029536,0.53557144,21100.0,21099.0,0.0195135]
[1674179031579,0.09,21100.0,21099.0,0.0195135]
[1674179031837,0.09,21100.0,21099.0,0.42335146]
[1674179033373,0.09,21100.0,21099.0,0.0195135]
[1674179037061,0.09,21100.0,21099.0,0.42708303]
[1674179040132,0.563933,21100.0,21099.0,0.0195135]
[1674179040393,0.42219341,21100.0,21099.0,0.0195135]
[1674179040690,0.89612641,21100.0,21099.0,0.0195135]
[1674179040951,0.42219341,21100.0,21099.0,0.0195135]
[1674179041203,0.563933,21100.0,21099.0,0.48488903]
[1674179041684,0.09,21100.0,21099.0,0.48488903]
[1674179043343,0.09,21100.0,21099.0,0.0195135]
[1674179044121,0.51197174,21100.0,21099.0,0.0195135]
[1674179044389,0.81859574,21100.0,21099.0,0.0195135]
[1674179044942,0.93215302,21100.0,21099.0,0.0195135]
[1674179045452,0.81859574,21100.0,21099.0,0.0195135]
[1674179046196,0.51197174,21100.0,21099.0,0.0195135]
[1674179056853,0.98590474,21100.0,21099.0,0.0195135]
[1674179057386,1.31379374,21100.0,21099.0,0.0195135]
[1674179057693,1.42735102,21100.0,21099.0,0.0195135]
[1674179057971,0.83986074,21100.0,21099.0,0.0195135]
[1674179059055,0.95341802,21100.0,21099.0,0.02520701]
[1674179059857,0.83986074,21100.0,21099.0,0.02520701]
[1674179062444,0.82958674,21100.0,21099.0,0.02520701]
[1674179062960,0.51197174,21100.0,21099.0,0.02520701]
[1674179063219,0.81729474,21100.0,21099.0,0.02520701]
[1674179063992,0.77767874,21100.0,21099.0,0.02520701]
[1674179064272,0.51197174,21100.0,21099.0,0.02520701]
[1674179067968,0.09,21100.0,21099.0,0.02520701]
[1674179069504,0.09,21100.0,21099.0,0.44410831]
[1674179077166,0.09,21100.0,21099.0,0.02520701]
[1674179077392,0.43382262,21100.0,21099.0,0.02520701]
[1674179081974,0.09,21100.0,21099.0,0.02520701]
[1674179082243,0.09,21100.0,21099.0,0.4847232]
[1674179082500,0.08989689,21100.0,21099.0,0.7955082]
[1674179084414,0.08989689,21100.0,21099.0,0.74911762]
[1674179084674,0.08989689,21100.0,21099.0,2.25662064]
[1674179084972,0.08989689,21100.0,21099.0,2.42547763]
[1674179085236,0.08989689,21100.0,21099.0,3.05682793]
[1674179085498,0.08989689,21100.0,21099.0,2.8993896]
[1674179085766,0.08989689,21100.0,21099.0,2.13607291]
[1674179087151,0.08989689,21100.0,21099.0,2.89919123]
[1674179087408,0.08989689,21100.0,21099.0,2.73033424]
[1674179088216,0.08989689,21100.0,21099.0,2.13607291]
[1674179089850,0.08989689,21100.0,21099.0,2.02299133]
[1674179090372,0.08989689,21100.0,21099.0,1.72299133]
[1674179090886,0.08989689,21100.0,21099.0,2.02299133]
[1674179100277,0.08989689,21100.0,21099.0,1.72299133]
[1674179100539,0.08989689,21100.0,21099.0,2.02299133]
[1674179100837,0.08989689,21100.0,21099.0,1.72299133]
[1674179101107,0.08989689,21100.0,21099.0,2.13607291]
[1674179101390,0.08989689,21100.0,21099.0,2.73572334]
[1674179101655,0.08989689,21100.0,21099.0,2.13607291]
[1674179102496,0.08989689,21100.0,21099.0,2.73587725]
[1674179102786,0.08989689,21100.0,21099.0,2.90473424]
[1674179103042,0.08989689,21100.0,21099.0,2.73587725]
[1674179103303,0.08989689,21100.0,21099.0,2.90473424]
[1674179103575,0.08989689,21100.0,21099.0,2.13607291]
[1674179103827,0.08989689,21100.0,21099.0,2.02299133]
[1674179104090,0.08989689,21100.0,21099.0,2.13607291]
[1674179104607,0.08989689,21100.0,21099.0,2.02299133]
[1674179105144,0.08989689,21100.0,21099.0,2.13607291]
[1674179105666,0.08989689,21100.0,21099.0,3.03383894]
[1674179105935,0.08979883,21100.0,21099.0,2.87550211]
[1674179106196,0.08979883,21100.0,21099.0,2.40154611]
[1674179107510,0.08979883,21100.0,21099.0,2.55987723]
[1674179107765,0.08979883,21100.0,21099.0,2.40154611]
[1674179108027,0.08979883,21100.0,21099.0,2.87550211]
[1674179108281,0.08979883,21100.0,21099.0,2.12354138]
[1674179110310,0.08979883,21100.0,21099.0,2.0104598]
[1674179110571,0.08979883,21100.0,21099.0,2.12354138]
[1674179110847,0.08979883,21100.0,21099.0,1.6996748]
[1674179111420,0.08979883,21100.0,21099.0,2.0121748]
[1674179111954,0.08979883,21100.0,21099.0,1.6996748]
[1674179112707,0.08979883,21100.0,21099.0,2.0154538]
[1674179112963,0.08979883,21100.0,21099.0,1.81275638]
[1674179113474,0.08979883,21100.0,21099.0,2.11696938]
[1674179114248,0.08979883,21100.0,21099.0,1.81275638]
[1674179114756,0.08979883,21100.0,21099.0,2.13365738]
[1674179115242,0.08979883,21100.0,21099.0,2.72680545]
[1674179115498,0.08979883,21100.0,21099.0,2.72675614]
[1674179116477,0.08979883,21100.0,21099.0,1.81275638]
[1674179116736,0.08979883,21100.0,21099.0,1.3996748]
[1674179116991,0.08979883,21100.0,21099.0,1.6996748]
[1674179117250,0.08979883,21100.0,21099.0,0.9257188]
[1674179117778,0.08979883,21100.0,21099.0,1.3996748]
[1674179118541,0.08425249,21100.0,21099.0,1.2257188]
[1674179118829,0.08425249,21100.0,21099.0,1.6996748]
[1674179119090,0.08425249,21100.0,21099.0,1.3996748]
[1674179119613,0.08425249,21100.0,21099.0,1.81275638]
[1674179119877,0.08425249,21100.0,21099.0,2.13491338]
[1674179120187,0.08425249,21100.0,21099.0,2.12570938]
[1674179120620,0.08425249,21100.0,21099.0,2.73650974]
[1674179121366,0.08425249,21100.0,21099.0,3.06342102]
[1674179123224,0.08425249,21100.0,21099.0,2.43650974]
[1674179123481,0.08425249,21100.0,21099.0,2.12355674]
[1674179123742,0.08425249,21100.0,21099.0,2.45330174]
[1674179124534,0.08425249,21100.0,21099.0,1.84250138]
[1674179124795,0.08425249,21100.0,21099.0,2.13058585]
[1674179125051,0.08425249,21100.0,21099.0,2.45617485]
[1674179125324,0.08425249,21100.0,21099.0,1.51275638]
[1674179125592,0.08425249,21100.0,21099.0,1.3996748]
[1674179125854,0.08425249,21100.0,21099.0,0.9257188]
[1674179126384,0.41869613,21100.0,21099.0,0.01267548]
[1674179127694,0.73565966,21100.0,21099.0,0.01267548]
[1674179128708,0.67051366,21100.0,21099.0,0.01267548]
[1674179128958,0.41757166,21100.0,21099.0,0.01267548]
[1674179130018,0.72852966,21100.0,21099.0,0.01267548]
[1674179131855,0.41757166,21100.0,21099.0,0.01267548]
[1674179132116,0.74273766,21100.0,21099.0,0.01267548]
[1674179133843,0.41757166,21100.0,21099.0,0.01267548]
[1674179134399,0.73104566,21100.0,21099.0,0.01267548]
[1674179134678,0.72289466,21100.0,21099.0,0.01267548]
[1674179134926,0.41757166,21100.0,21099.0,0.01267548]
[1674179139441,0.08312802,21100.0,21099.0,0.45574713]
[1674179141075,0.08312802,21100.0,21099.0,0.01267548]
[1674179141332,0.40502402,21100.0,21099.0,0.01267548]
[1674179142605,0.39984202,21100.0,21099.0,0.01267548]
[1674179142840,0.316714,21100.0,21099.0,0.01267548]
[1674179143063,0.401714,21100.0,21099.0,0.01367548]
[1674179143553,0.408003,21100.0,21099.0,0.01367548]
[1674179143857,0.085,21100.0,21099.0,0.01367548]
[1674179144388,0.401239,21100.0,21099.0,0.01367548]
[1674179145715,0.316239,21100.0,21099.0,0.01267548]
[1674179145978,0.085,21100.0,21099.0,0.01367548]
[1674179146526,0.085,21100.0,21099.0,0.41750917]
[1674179149246,0.558933,21100.0,21099.0,0.41750917]
[1674179149519,0.46275627,21100.0,21099.0,0.01367548]
[1674179149776,1.26991527,21100.0,21099.0,0.01367548]
[1674179150622,0.79598227,21100.0,21099.0,0.01367548]
[1674179151734,0.085,21100.0,21099.0,0.01367548]
[1674179154576,0.085,21100.0,21099.0,0.43483095]
[1674179155103,0.085,21100.0,21099.0,0.01367548]
[1674179157062,0.558933,21100.0,21099.0,0.01367548]
[1674179157325,0.085,21100.0,21099.0,0.01367548]
[1674179157861,0.558933,21100.0,21099.0,0.01367548]
[1674179158653,0.085,21100.0,21099.0,0.01367548]
[1674179159996,0.085,21100.0,21099.0,0.36444062]
[1674179160533,0.085,21100.0,21099.0,0.01367548]
[1674179162140,0.085,21100.0,21099.0,0.39345422]
[1674179162918,0.085,21100.0,21099.0,0.72865422]
[1674179163232,0.085,21100.0,21099.0,0.39345422]
[1674179163494,0.085,21100.0,21099.0,0.72346522]
[1674179163791,0.085,21100.0,21099.0,1.02346522]
[1674179164598,0.08489989,21100.0,21099.0,1.02346522]
[1674179166187,0.08489989,21100.0,21099.0,0.72346522]
[1674179167235,0.08489989,21100.0,21099.0,1.19742122]
[1674179167787,0.08489989,21100.0,21099.0,0.72346522]
[1674179168048,0.08489989,21100.0,21099.0,1.02346522]
[1674179168827,0.08489989,21100.0,21099.0,0.72346522]
[1674179169106,0.08489989,21100.0,21099.0,1.02346522]
[1674179169687,0.08489989,21100.0,21099.0,1.49742122]
[1674179171792,0.08489989,21100.0,21099.0,1.19742122]
[1674179172065,0.08489989,21100.0,21099.0,1.49742122]
[1674179173903,0.08489989,21100.0,21099.0,1.19742122]
[1674179174477,0.08489989,21100.0,21099.0,1.49742122]
[1674179175472,0.08489989,21100.0,21099.0,0.01367548]
[1674179175761,0.42529946,21100.0,21099.0,0.01367548]
[1674179176007,0.08489989,21100.0,21099.0,0.48763148]
[1674179176519,0.08489989,21100.0,21099.0,0.89495495]
[1674179178685,0.07989989,21100.0,21099.0,1.36891095]
[1674179179781,0.07989989,21100.0,21099.0,0.89495495]
[1674179181146,0.07989989,21100.0,21099.0,1.36891095]
[1674179181408,0.07989989,21100.0,21099.0,1.98389095]
[1674179182466,0.07989989,21100.0,21099.0,2.09697253]
[1674179182725,0.07989989,21100.0,21099.0,2.72289511]
[1674179183219,0.07989989,21100.0,21099.0,2.60332687]
[1674179183491,0.07989989,21100.0,21099.0,2.66106264]
[1674179185090,0.07989989,21100.0,21099.0,2.03514006]
[1674179185352,0.07989989,21100.0,21099.0,1.92205848]
[1674179186158,0.07989989,21100.0,21099.0,2.03514006]
[1674179186434,0.07989989,21100.0,21099.0,1.92205848]
[1674179188303,0.07989989,21100.0,21099.0,2.03514006]
[1674179188576,0.07989989,21100.0,21099.0,1.92205848]
[1674179190993,0.07989989,21100.0,21099.0,2.03514006]
[1674179191739,0.07989989,21100.0,21099.0,2.64246747]
[1674179191958,0.07989989,21100.0,21099.0,2.81132446]
[1674179192233,0.07989989,21100.0,21099.0,2.93018092]
[1674179192450,0.07989989,21100.0,21099.0,2.64246747]
[1674179193194,0.07989989,21100.0,21099.0,2.03514006]
[1674179193709,0.07989989,21100.0,21099.0,1.92205848]
[1674179196783,0.07989989,21100.0,21099.0,2.03514006]
[1674179197534,0.07989989,21100.0,21099.0,2.6608603]
[1674179198528,0.07989989,21100.0,21099.0,2.03514006]
[1674179198762,0.07981853,21100.0,21099.0,2.65873498]
[1674179199054,0.07981853,21100.0,21099.0,2.03514006]
[1674179199317,0.07981853,21100.0,21099.0,1.92205848]
[1674179200602,0.07981853,21100.0,21099.0,1.30707848]
[1674179201149,0.07981853,21100.0,21099.0,0.96158748]
[1674179201663,0.42515853,21100.0,21099.0,0.96158748]
[1674179203229,0.40997653,21100.0,21099.0,0.96158748]
[1674179203443,0.07981853,21100.0,21099.0,0.96158748]
[1674179208619,0.07981853,21100.0,21099.0,0.48763148]
[1674179209961,0.07981853,21100.0,21099.0,0.96158748]
[1674179211034,0.07981853,21100.0,21099.0,0.01367548]
[1674179211594,0.38384653,21100.0,21099.0,0.48763148]
[1674179212116,0.40398853,21100.0,21099.0,0.48763148]
[1674179212413,0.07981853,21100.0,21099.0,0.48763148]
[1674179213450,0.07981853,21100.0,21099.0,0.96158748]
[1674179213705,0.07981853,21100.0,21099.0,0.48763148]
[1674179213964,0.07981853,21100.0,21099.0,0.01367548]
[1674179215028,0.07981853,21100.0,21099.0,0.36696302]
[1674179216385,0.38746753,21100.0,21099.0,0.36696302]
[1674179217445,0.40644253,21100.0,21099.0,0.36696302]
[1674179217708,0.40644253,21100.0,21099.0,0.01367548]
[1674179218714,0.07981853,21100.0,21099.0,0.01267548]
[1674179219007,0.36838822,21101.0,21099.0,0.01267548]
[1674179219233,0.085,21100.0,21099.0,0.01367548]
[1674179220269,0.36838822,21101.0,21099.0,0.01267548]
[1674179220525,0.45338822,21101.0,21099.0,0.01267548]
[1674179220796,0.335089,21100.0,21099.0,0.01267548]
[1674179221052,0.335089,21100.0,21099.0,0.35857803]
[1674179221331,0.085,21100.0,21099.0,0.35957803]
[1674179221598,0.36838822,21101.0,21099.0,0.35857803]
[1674179221854,0.45338822,21101.0,21099.0,0.35957803]
[1674179222333,0.324223,21100.0,21099.0,0.35857803]
[1674179222642,0.36838822,21101.0,21099.0,0.35857803]
[1674179222918,0.36838822,21101.0,21099.0,1.30649003]
[1674179223429,0.085,21100.0,21099.0,1.30749003]
[1674179223683,0.36838822,21101.0,21099.0,1.30649003]
[1674179223945,0.45338822,21101.0,21099.0,1.30749003]
[1674179224215,0.45338822,21101.0,21099.0,0.35957803]
[1674179225543,0.45338822,21101.0,21099.0,1.30748303]
[1674179226069,0.085,21101.0,21100.0,0.41545691]
[1674179226317,0.085,21101.0,21100.0,0.51545691]
[1674179226876,0.085,21101.0,21100.0,0.41545691]
[1674179227401,0.34554216,21102.0,21100.0,0.41545691]
[1674179227624,0.086,21101.0,21100.0,0.41645691]
[1674179227896,0.395681,21101.0,21100.0,0.41645691]
[1674179228155,0.417699,21101.0,21100.0,0.41645691]
[1674179228384,0.086,21101.0,21100.0,0.41645691]
[1674179229136,0.34554216,21102.0,21100.0,0.41545691]
[1674179229387,0.43154216,21102.0,21100.0,0.41645691]
[1674179229666,0.34554216,21102.0,21100.0,0.41545691]
[1674179230721,0.34954216,21102.0,21100.0,0.41745691]
[1674179231488,0.34942336,21102.0,21100.0,0.41745691]
[1674179231740,0.34942336,21102.0,21100.0,0.26745691]
[1674179232267,0.34942336,21102.0,21100.0,0.002]
[1674179232822,0.325546,21101.0,21100.0,0.002]
[1674179233081,1.29720136,21102.0,21100.0,0.002]
[1674179233332,0.68640841,21101.0,21100.0,0.002]
[1674179233610,0.68640841,21101.0,21099.0,0.01267548]
[1674179233880,0.38581541,21101.0,21100.0,0.002]
[1674179234135,0.38581541,21101.0,21100.0,0.949866]
[1674179234399,0.72465141,21101.0,21100.0,0.002]
[1674179234680,0.94501036,21101.0,21100.0,0.002]
[1674179234946,0.72465141,21101.0,21100.0,0.002]
[1674179235763,0.38581541,21101.0,21100.0,0.002]
[1674179236046,0.71936441,21101.0,21100.0,0.002]
[1674179237032,1.19327541,21101.0,21100.0,0.002]
[1674179237867,0.71936441,21101.0,21100.0,0.002]
[1674179238043,0.71936441,21101.0,21100.0,0.02458767]
[1674179239115,0.83292169,21101.0,21100.0,0.02458767]
[1674179239370,0.71936441,21101.0,21100.0,0.02458767]
[1674179239629,0.83292169,21101.0,21100.0,0.02458767]
[1674179240941,0.71936441,21101.0,21100.0,0.02458767]
[1674179241217,0.004,21101.0,21100.0,0.02458767]
[1674179241485,0.004,21101.0,21100.0,0.48342102]
[1674179241789,0.004,21101.0,21100.0,0.48332623]
[1674179242270,0.004,21101.0,21100.0,0.02449288]
[1674179242563,0.326928,21101.0,21100.0,0.02449288]
[1674179242802,0.004,21101.0,21100.0,0.02449288]
[1674179245386,0.43231326,21101.0,21100.0,0.02449288]
[1674179245894,0.75777726,21101.0,21100.0,0.02449288]
[1674179246380,0.75534626,21101.0,21100.0,0.02449288]
[1674179246913,0.43231326,21101.0,21100.0,0.02449288]
[1674179247178,0.75219726,21101.0,21100.0,0.02449288]
[1674179248516,0.86575454,21101.0,21100.0,0.02449288]
[1674179248785,0.75219726,21101.0,21100.0,0.02449288]
[1674179249562,0.86575454,21101.0,21100.0,0.02449288]
[1674179249826,0.75219726,21101.0,21100.0,0.02449288]
[1674179250078,0.86575454,21101.0,21100.0,0.02449288]
[1674179250631,0.75219726,21101.0,21100.0,0.02449288]
[1674179250897,0.68345926,21101.0,21100.0,0.02449288]
[1674179251400,0.87497201,21101.0,21100.0,0.02449288]
[1674179251911,0.68345926,21101.0,21100.0,0.02449288]
[1674179252426,0.79701654,21101.0,21100.0,0.02449288]
[1674179252678,0.68345926,21101.0,21100.0,0.02449288]
[1674179254176,0.43231326,21101.0,21100.0,0.02449288]
[1674179256216,0.76808426,21101.0,21100.0,0.02449288]
[1674179256986,0.43231326,21101.0,21100.0,0.02449288]
[1674179257267,0.76248726,21101.0,21100.0,0.02449288]
[1674179257795,0.87604454,21101.0,21100.0,0.02449288]
[1674179258645,0.76248726,21101.0,21100.0,0.02449288]
[1674179262041,0.43231326,21101.0,21100.0,0.02449288]
[1674179262299,0.004,21101.0,21100.0,0.43992506]
[1674179264423,0.004,21101.0,21100.0,0.91385806]
[1674179264711,0.004,21101.0,21100.0,0.43992506]
[1674179267638,0.004,21101.0,21100.0,0.91385806]
[1674179267863,0.004,21101.0,21100.0,0.43992506]
[1674179268335,0.004,21101.0,21100.0,0.02449288]
[1674179270928,0.004,21101.0,21100.0,0.49842588]
[1674179271171,0.004,21101.0,21100.0,0.02449288]
[1674179272499,0.00391618,21101.0,21100.0,0.85157195]
[1674179272742,0.00391618,21101.0,21100.0,1.45369095]
[1674179273547,0.00391618,21101.0,21100.0,1.15369095]
[1674179273831,0.00391618,21101.0,21100.0,1.17936395]
[1674179274093,0.00391618,21101.0,21100.0,0.85157195]
[1674179274452,0.00391618,21101.0,21100.0,1.32550495]
[1674179275782,0.00391618,21101.0,21100.0,1.66308895]
[1674179276556,0.00391618,21101.0,21100.0,1.32550495]
[1674179276822,0.00391618,21101.0,21100.0,1.62550495]
[1674179277081,0.00391618,21101.0,21100.0,1.58204688]
[1674179277354,0.00391618,21101.0,21100.0,2.65162102]
[1674179277633,0.00391618,21101.0,21100.0,3.40746054]
[1674179277881,0.00391618,21101.0,21100.0,2.96824478]
[1674179278151,0.00391618,21101.0,21100.0,2.79938779]
[1674179278645,0.39673326,21106.0,21101.0,0.1]
[1674179278905,0.39673326,21106.0,21102.0,2.07406876]
[1674179279160,0.39673326,21106.0,21103.0,0.423828]
[1674179279456,0.39673326,21106.0,21104.0,0.473843]
[1674179279688,0.39673326,21106.0,21103.0,0.873856]
[1674179279956,0.39673326,21106.0,21103.0,0.573856]
[1674179280481,0.47379,21107.0,21103.0,0.573856]
[1674179280482,0.47379,21107.0,21103.0,1.047722]
[1674179280788,0.44477691,21107.0,21103.0,1.44437127]
[1674179280996,0.44477691,21107.0,21104.0,0.41833322]
[1674179281264,0.44477691,21107.0,21104.0,0.89217122]
[1674179281536,0.45277691,21107.0,21104.0,0.89217122]
[1674179282607,0.44477691,21107.0,21104.0,0.89417122]
[1674179282849,0.45077691,21107.0,21104.0,0.89217122]
[1674179283132,0.45077691,21107.0,21104.0,0.89417122]
[1674179283408,0.45677691,21107.0,21104.0,0.89417122]
[1674179283670,0.012,21107.0,21105.0,0.34469332]
[1674179284487,0.33907929,21108.0,21105.0,0.34469332]
[1674179284982,0.079,21107.0,21105.0,0.81951332]
[1674179285245,0.53997664,21107.0,21105.0,0.81951332]
[1674179286276,0.46097664,21107.0,21105.0,0.82551332]
[1674179286541,0.46097664,21107.0,21105.0,0.47382]
[1674179286801,0.46897664,21107.0,21105.0,0.48082]
[1674179287096,0.46097664,21107.0,21104.0,0.80747317]
[1674179287403,0.46697664,21107.0,21105.0,0.002]
[1674179288207,0.3498292,21106.0,21104.0,0.33364917]
[1674179288757,0.3498292,21106.0,21103.0,0.947699]
[1674179289014,0.54415017,21106.0,21103.0,0.947699]
[1674179289285,0.3498292,21106.0,21103.0,0.947699]
[1674179289860,0.3498292,21106.0,21103.0,1.40464006]
[1674179290139,0.3588292,21106.0,21103.0,1.41164006]
[1674179290388,0.3498292,21106.0,21103.0,1.40464006]
[1674179290651,0.3588292,21106.0,21103.0,1.41164006]
[1674179290936,0.3498292,21106.0,21103.0,1.40464006]
[1674179291196,0.3588292,21106.0,21103.0,1.41164006]
[1674179291474,0.3588292,21106.0,21103.0,1.40464006]
[1674179291735,0.3668292,21106.0,21103.0,1.41164006]
[1674179291990,0.3668292,21106.0,21104.0,0.43475392]
[1674179292245,0.3668292,21106.0,21104.0,0.90859192]
[1674179292813,0.3498292,21106.0,21104.0,0.90859192]
[1674179293066,0.3578292,21106.0,21104.0,0.90859192]
[1674179293605,0.3638292,21106.0,21104.0,0.91059192]
[1674179293868,0.947523,21108.0,21104.0,0.43475392]
[1674179293869,0.473769,21108.0,21104.0,0.43475392]
[1674179294162,0.006,21106.0,21104.0,0.43475392]
[1674179294418,0.006,21106.0,21104.0,0.43675392]
[1674179294673,0.90720538,21107.0,21105.0,0.33580421]
[1674179295507,0.31133,21106.0,21105.0,0.33580421]
[1674179295764,0.31133,21106.0,21105.0,0.3356846]
[1674179296020,0.90720538,21107.0,21105.0,0.3356846]
[1674179296541,0.3113,21106.0,21105.0,0.3356846]
[1674179296814,0.3903,21106.0,21105.0,0.001]
[1674179297068,0.3903,21106.0,21103.0,0.947698]
[1674179297069,0.74785522,21106.0,21103.0,1.2840174]
[1674179297325,0.43082722,21106.0,21103.0,1.2840354]
[1674179297863,0.50982722,21106.0,21105.0,0.001]
[1674179298963,0.43082722,21106.0,21104.0,0.4068666]
[1674179299216,0.43882722,21106.0,21104.0,0.4068666]
[1674179299542,0.43882722,21106.0,21105.0,0.001]
[1674179299792,0.43882722,21106.0,21104.0,0.4068666]
[1674179299793,0.43082722,21106.0,21104.0,0.4068666]
[1674179300038,0.43682722,21106.0,21104.0,0.4088666]
[1674179300551,0.006,21106.0,21104.0,0.4088666]
[1674179301014,0.473791,21107.0,21104.0,0.4068666]
[1674179301015,0.82444095,21107.0,21104.0,0.4068666]
[1674179301804,0.35064995,21107.0,21104.0,0.5068666]
[1674179302319,0.35664995,21107.0,21104.0,0.5088666]
[1674179302583,0.42857675,21106.0,21104.0,0.4088666]
[1674179302869,0.42857675,21106.0,21104.0,0.8827086]
[1674179303395,0.42857675,21106.0,21104.0,0.8807086]
[1674179303652,0.42857675,21106.0,21104.0,0.8827086]
[1674179303914,0.43457675,21106.0,21104.0,0.8827086]
[1674179305232,0.43457675,21106.0,21104.0,0.88261274]
[1674179310490,0.300999,21105.0,21104.0,0.475842]
[1674179310779,0.73623945,21105.0,21104.0,0.475842]